bitfinex-derivatives/quotes_SOLF0:USTF0_20240815
["timestamp","ask_amount","ask_price","bid_price","bid_amount"]
[1723744630160,0.04924275,144.41,144.38,0.04984697]
[1723744630555,0.04924275,144.41,144.38,3.51234697]
[1723744630857,0.04924275,144.41,144.38,0.04984697]
[1723744632161,19.95924275,144.41,144.38,0.04984697]
[1723744632458,3.4623,144.39,144.38,0.04984697]
[1723744632657,23.3723,144.39,144.38,0.04984697]
[1723744633748,3.4623,144.39,144.38,0.04984697]
[1723744634255,19.95924275,144.41,144.38,0.04984697]
[1723744634456,0.04924275,144.41,144.38,0.04984697]
[1723744634860,0.04924275,144.41,144.38,3.51234697]
[1723744635362,0.04924275,144.41,144.38,0.04984697]
[1723744635754,19.95924275,144.41,144.38,0.04984697]
[1723744635961,3.4622,144.4,144.38,0.04984697]
[1723744636350,19.95924275,144.41,144.38,0.04984697]
[1723744636549,3.4622,144.4,144.38,0.04984697]
[1723744636758,19.95924275,144.41,144.38,0.04984697]
[1723744637563,3.4622,144.4,144.38,0.04984697]
[1723744637861,19.95924275,144.41,144.38,0.04984697]
[1723744638265,3.462,144.4,144.38,0.04984697]
[1723744638563,19.95924275,144.41,144.38,0.04984697]
[1723744638960,3.4623,144.39,144.38,0.04984697]
[1723744639262,23.3723,144.39,144.38,0.04984697]
[1723744642973,19.95924275,144.41,144.38,0.04984697]
[1723744643171,0.04924275,144.41,144.38,3.51224697]
[1723744643672,0.04924275,144.41,144.38,0.04984697]
[1723744644178,19.95924275,144.41,144.38,0.04984697]
[1723744644373,19.91,144.4,144.38,0.04984697]
[1723744644675,3.4623,144.39,144.38,0.04984697]
[1723744644978,19.91,144.4,144.28,4.58]
[1723744645167,19.91,144.34,144.26,3.9063]
[1723744645476,24.49,144.34,144.3,3.4644]
[1723744645671,31.4404644,144.34,144.3,3.4644]
[1723744645878,27.9767644,144.34,144.26,27.35743147]
[1723744646080,27.9767644,144.34,144.29,3.4645]
[1723744646378,0.04752617,144.33,144.31,0.05273968]
[1723744646578,3.51122617,144.33,144.31,0.05273968]
[1723744647173,19.91,144.32,144.31,0.05273968]
[1723744647673,23.374,144.32,144.31,0.05273968]
[1723744648075,0.04752617,144.33,144.31,0.05273968]
[1723744648276,4.62752617,144.33,144.31,0.05273968]
[1723744648474,19.91,144.32,144.31,0.05273968]
[1723744648881,23.374,144.32,144.31,0.05273968]
[1723744650070,23.374,144.32,144.22,7.33998516]
[1723744650071,19.91,144.32,144.22,7.33998516]
[1723744650377,0.04752617,144.33,144.26,3.4652]
[1723744650679,24.49,144.32,144.22,3.9169]
[1723744651082,19.91,144.3,144.22,3.9169]
[1723744651482,0.04395635,144.28,144.26,0.05313768]
[1723744652686,0.04395635,144.28,144.26,3.51843768]
[1723744652886,0.04395635,144.28,144.26,0.05313768]
[1723744653581,0.04395635,144.28,144.27,3.4652]
[1723744653772,19.91,144.34,144.26,0.05313768]
[1723744654176,3.464,144.32,144.27,3.4651]
[1723744654784,19.91,144.33,144.23,28.02685833]
[1723744654974,19.91,144.31,144.23,4.58]
[1723744655581,3.4646,144.3,144.24,3.4659]
[1723744655782,19.96291294,144.31,144.28,0.04996168]
[1723744656380,3.4646,144.3,144.24,3.4659]
[1723744656586,19.91,144.31,144.22,3.9169]
[1723744656889,19.95439856,144.31,144.28,0.05183872]
[1723744657288,19.91,144.31,144.26,3.4652]
[1723744657591,19.95476195,144.31,144.28,0.04501966]
[1723744657888,23.41896195,144.31,144.28,0.04501966]
[1723744658383,3.4646,144.3,144.28,0.04501966]
[1723744659290,19.95476195,144.31,144.28,0.04501966]
[1723744659482,3.47173936,144.43,144.28,0.04501966]
[1723744659687,19.91,144.36,144.28,1.2553]
[1723744659884,19.91,144.36,144.28,2.5939]
[1723744660187,23.373,144.36,144.3,3.4643]
[1723744660388,19.91,144.36,144.28,2.5939]
[1723744660583,19.91,144.36,144.31,3.464]
[1723744660794,3.4628,144.37,144.28,2.5939]
[1723744660795,19.91,144.33,144.32,0.04485901]
[1723744661093,24.49,144.33,144.26,3.4652]
[1723744661289,19.91,144.28,144.23,2.5946]
[1723744661795,19.91,144.28,144.24,3.4657]
[1723744662185,0.05281478,144.27,144.25,0.04568606]
[1723744663788,3.51801478,144.27,144.25,0.04568606]
[1723744664387,3.51801478,144.27,144.22,3.4663]
[1723744664693,19.91,144.24,144.15,3.9341]
[1723744664885,19.91,144.21,144.15,7.39150704]
[1723744665088,19.91,144.21,144.15,3.9341]
[1723744665288,19.91,144.23,144.15,3.9341]
[1723744665488,27.9563,144.23,144.18,3.4673]
[1723744665688,27.9563,144.23,144.18,3.51405077]
[1723744665884,0.04522954,144.2,144.18,0.04675077]
[1723744666089,4.58,144.26,144.19,19.91]
[1723744666290,4.58,144.27,144.19,19.91]
[1723744666489,8.0453,144.27,144.19,19.91]
[1723744667192,0.05198926,144.24,144.22,3.5139017]
[1723744667493,0.05198926,144.24,144.22,0.0476017]
[1723744667691,0.05198926,144.24,144.22,3.5138017]
[1723744668187,0.05198926,144.24,144.22,0.0476017]
[1723744668997,0.05198926,144.24,144.22,3.5138017]
[1723744669490,0.05198926,144.24,144.23,3.4661]
[1723744669887,0.05198926,144.24,144.22,0.0476017]
[1723744671289,0.05198926,144.24,144.22,1.3500017]
[1723744671490,0.05198926,144.24,144.23,3.4661]
[1723744671695,24.59,144.3,144.22,1.3500017]
[1723744671893,19.91,144.3,144.22,24.60478897]
[1723744672497,19.91,144.3,144.22,4.69478897]
[1723744672698,19.91,144.3,144.22,1.3024]
[1723744672894,0.04792062,144.27,144.24,3.4657]
[1723744673200,0.04792062,144.27,144.25,0.05039636]
[1723744674297,0.04792062,144.27,144.25,3.51599636]
[1723744675193,0.04792062,144.27,144.25,0.05039636]
[1723744675389,3.50845144,144.33,144.25,0.05039636]
[1723744675594,24.59,144.33,144.25,0.05039636]
[1723744676494,3.4642,144.31,144.26,3.4652]
[1723744676795,0.04575233,144.3,144.23,23.35296035]
[1723744676996,0.04575233,144.3,144.23,19.91]
[1723744677395,0.04575233,144.3,144.27,0.05022829]
[1723744677700,0.04575233,144.3,144.28,3.4648]
[1723744678198,0.04575233,144.3,144.29,3.4647]
[1723744678402,19.91,144.36,144.28,1.3359]
[1723744678699,4.68,144.38,144.28,1.3359]
[1723744678700,24.59,144.38,144.29,19.91]
[1723744678901,4.68,144.38,144.3,4.68]
[1723744679095,19.91,144.39,144.3,4.68]
[1723744679295,1.2941,144.43,144.31,19.91]
[1723744679491,19.91,144.42,144.31,23.35584198]
[1723744679904,3.4619,144.41,144.33,0.04561168]
[1723744680295,0.04968823,144.38,144.33,0.04561168]
[1723744680494,0.04968823,144.38,144.32,23.44174735]
[1723744680697,19.95968823,144.38,144.29,1.254]
[1723744681002,19.95968823,144.38,144.34,3.51472774]
[1723744681196,19.91,144.36,144.32,4.68]
[1723744681397,19.91,144.39,144.24,3.8834]
[1723744681398,19.91,144.33,144.24,3.8834]
[1723744681588,4.68,144.37,144.24,3.8834]
[1723744681589,19.91,144.3,144.24,3.8834]
[1723744681998,3.4644,144.31,144.26,3.4652]
[1723744682199,29.62,144.32,144.24,3.8834]
[1723744682200,3.4649,144.29,144.24,3.8834]
[1723744682405,24.94,144.3,144.24,3.8834]
[1723744682803,24.98615513,144.3,144.27,0.05143229]
[1723744683502,24.94,144.28,144.27,0.05143229]
[1723744683799,24.94,144.28,144.18,4.68]
[1723744684002,4.68,144.27,144.19,1.2693]
[1723744684204,24.94,144.28,144.19,1.2693]
[1723744684401,29.62,144.28,144.19,1.2693]
[1723744684602,3.4655,144.26,144.21,3.4664]
[1723744684807,29.62,144.28,144.19,1.2693]
[1723744685309,0.04450968,144.25,144.22,0.0458836]
[1723744685905,0.04450968,144.25,144.22,3.5120836]
[1723744686210,0.04450968,144.25,144.22,0.0458836]
[1723744687204,0.04450968,144.25,144.22,3.5120836]
[1723744687606,0.04450968,144.25,144.22,0.0458836]
[1723744688808,0.04450968,144.25,144.22,3.5120836]
[1723744689002,0.04450968,144.25,144.22,0.0458836]
[1723744689409,3.51020968,144.25,144.22,0.0458836]
[1723744689703,0.04450968,144.25,144.22,0.0458836]
[1723744692001,0.04450968,144.25,144.23,3.4659]
[1723744693702,0.04450968,144.25,144.24,3.4659]
[1723744694307,0.04450968,144.25,144.22,0.0458836]
[1723744694504,24.94,144.19,144.08,24.94]
[1723744694705,24.94,144.21,144.14,1.254]
[1723744695309,24.94,144.19,144.12,2.5594]
[1723744695607,24.94,144.19,144.13,5.08]
[1723744695815,24.94,144.19,144.11,5.08]
[1723744696013,24.94,144.19,144.14,0.04654258]
[1723744696014,0.05061664,144.17,144.14,0.04654258]
[1723744696307,24.99061664,144.17,144.14,0.04654258]
[1723744696716,24.99061664,144.17,144.06,4.7241]
[1723744696909,24.94,144.14,144.06,6.334]
[1723744697212,24.94,144.14,144.06,1.254]
[1723744697706,3.4694,144.1,144.06,1.254]
[1723744698012,3.4694,144.1,144.09,0.05100461]
[1723744698413,3.5205194,144.11,144.09,0.05100461]
[1723744699107,0.0514194,144.11,144.09,0.05100461]
[1723744699813,3.5206194,144.11,144.09,0.05100461]
[1723744700813,0.0514194,144.11,144.09,0.05100461]
[1723744702002,3.5204194,144.11,144.09,0.05100461]
[1723744702206,0.0514194,144.11,144.09,0.05100461]
[1723744703010,3.5206194,144.11,144.09,0.05100461]
[1723744703207,0.0514194,144.11,144.09,0.05100461]
[1723744703710,28.4605194,144.11,144.09,0.05100461]
[1723744704413,3.4693,144.1,144.03,2.7048]
[1723744704609,24.94,144.08,144.03,2.7048]
[1723744705002,24.94,144.08,144.04,3.4706]
[1723744705616,0.04979156,144.07,144.05,0.04918253]
[1723744706709,0.04979156,144.07,144.05,3.51958253]
[1723744707011,0.04979156,144.07,144.05,0.04918253]
[1723744708109,3.4702,144.06,144.05,0.04918253]
[1723744708420,28.4102,144.06,144.05,0.04918253]
[1723744708711,49.88,144.06,143.94,32.8]
[1723744708919,24.94,144.0,143.91,3.46287425]
[1723744709111,24.94,143.97,143.87,26.1768]
[1723744709408,27.74,144.09,143.95,24.94]
[1723744709613,24.94,144.1,143.99,24.94]
[1723744709809,24.94,144.05,144.0,5.08]
[1723744710113,0.0446844,144.03,144.01,0.05050386]
[1723744710308,0.0446844,144.03,143.93,19.99]
[1723744710309,19.99,144.02,143.93,19.99]
[1723744710508,19.99,144.02,143.97,1.2368]
[1723744710710,19.99,144.04,143.97,1.2368]
[1723744711510,0.05144505,144.02,143.97,1.2368]
[1723744711720,0.05144505,144.02,143.99,3.4717]
[1723744712012,0.05144505,144.02,143.97,1.2368]
[1723744712312,24.99,144.01,143.9,5.38]
[1723744712625,51.16,144.08,143.91,9.3051]
[1723744712626,24.99,143.99,143.91,9.3051]
[1723744712810,0.0512036,143.97,143.91,9.3051]
[1723744713814,0.0512036,143.97,143.93,3.4731]
[1723744714008,0.0512036,143.97,143.91,12.72665629]
[1723744714407,0.0512036,143.97,143.91,37.71665629]
[1723744716415,0.0512036,143.97,143.96,3.4726]
[1723744717022,0.0512036,143.97,143.91,37.71665629]
[1723744717623,0.0512036,143.97,143.95,3.4727]
[1723744717925,25.0412036,143.97,143.82,3.19885516]
[1723744718224,24.99,143.97,143.86,1.3128]
[1723744718420,0.05262094,143.91,143.86,1.3128]
[1723744719017,0.05262094,143.91,143.87,3.55692736]
[1723744719224,0.05262094,143.91,143.9,3.4741]
[1723744719415,0.05262094,143.91,143.87,5.38]
[1723744719615,0.05262094,143.91,143.89,3.4742]
[1723744720020,0.05262094,143.91,143.87,5.38]
[1723744720225,0.05262094,143.91,143.9,3.4741]
[1723744722022,0.05262094,143.91,143.86,1.3128]
[1723744722321,0.05262094,143.91,143.75,287.17831197]
[1723744722322,25.04262094,143.91,143.82,3.41230802]
[1723744722626,24.99,143.88,143.81,1.3116]
[1723744723124,1.3237,143.92,143.71,5.38]
[1723744723125,24.99,143.86,143.71,5.38]
[1723744723321,25.03591446,143.86,143.76,2.6122]
[1723744723522,30.41591446,143.86,143.76,6.04097901]
[1723744723725,24.99,143.88,143.77,24.99]
[1723744723926,0.05172954,143.82,143.77,24.99]
[1723744724120,0.05172954,143.82,143.81,3.4762]
[1723744724326,0.05172954,143.82,143.74,6.9558]
[1723744724327,0.05172954,143.82,143.74,1.3232]
[1723744724521,0.05172954,143.82,143.78,3.4769]
[1723744724732,24.99,143.8,143.74,1.3232]
[1723744725028,24.99,143.8,143.73,1.3116]
[1723744725218,24.99,143.8,143.7,1.3232]
[1723744725417,24.99,143.8,143.72,5.38]
[1723744725617,0.05306456,143.78,143.72,5.38]
[1723744726226,0.05306456,143.78,143.7,27.5562]
[1723744726227,0.05306456,143.78,143.7,2.5662]
[1723744726731,25.04306456,143.78,143.66,5.38]
[1723744726920,24.99,143.75,143.66,5.38]
[1723744727434,1.3548,143.84,143.66,5.38]
[1723744727633,24.99,143.77,143.66,5.38]
[1723744727930,5.4,143.76,143.66,6.7381]
[1723744728127,0.05104874,143.72,143.66,6.7381]
[1723744729232,24.99,143.71,143.66,5.38]
[1723744729424,24.99,143.71,143.61,5.72]
[1723744729624,0.05104874,143.72,143.67,3.4796]
[1723744729930,24.99,143.71,143.61,5.72]
[1723744730124,24.99,143.69,143.63,3.4804]
[1723744730328,24.99,143.67,143.57,2.628]
[1723744730526,24.99,143.64,143.51,1.2735]
[1723744730726,24.99,143.64,143.58,3.4818]
[1723744730926,24.99,143.62,143.52,2.6545]
[1723744731122,18.055,143.57,143.52,2.6545]
[1723744731330,24.99,143.6,143.52,2.6545]
[1723744731533,18.055,143.64,143.5,3.54597217]
[1723744731534,24.99,143.55,143.5,3.54597217]
[1723744731737,24.99,143.53,143.43,1.3562]
[1723744731927,24.99,143.51,143.43,1.3562]
[1723744732127,5.74,143.56,143.44,6.94]
[1723744732431,30.73,143.56,143.45,24.99]
[1723744732632,30.73,143.56,143.44,5.74]
[1723744732833,24.99,143.54,143.44,5.74]
[1723744733028,24.99,143.54,143.35,3.41868443]
[1723744733029,24.99,143.51,143.06,177.26406587]
[1723744733228,24.99,143.47,143.37,1.2584]
[1723744733434,24.99,143.48,143.37,1.2584]
[1723744733727,3.45203052,143.53,143.37,1.2584]
[1723744733927,0.04606188,143.5,143.37,1.2584]
[1723744734326,0.04606188,143.5,143.49,24.99]
[1723744734531,63.15529743,143.58,143.49,31.05]
[1723744734730,63.15529743,143.58,143.49,6.06]
[1723744734931,24.99,143.62,143.5,6.06]
[1723744735145,28.4705,143.64,143.51,6.06]
[1723744735432,24.99,143.64,143.52,31.05]
[1723744735634,6.06,143.65,143.49,6.06]
[1723744735832,24.99,143.62,143.51,24.99]
[1723744736336,0.05346826,143.59,143.53,24.99]
[1723744736538,0.05346826,143.59,143.45,3.5363451]
[1723744736727,24.99,143.54,143.47,1.25]
[1723744736931,0.05346826,143.59,143.55,0.05050835]
[1723744736932,24.99,143.57,143.55,0.05050835]
[1723744737735,24.99,143.57,143.47,1.25]
[1723744737936,24.99,143.54,143.47,1.25]
[1723744738438,1.3657,143.59,143.47,1.25]
[1723744738735,24.99,143.58,143.46,1.3021]
[1723744738939,95.40439519,143.64,143.46,1.3021]
[1723744738940,24.99,143.56,143.47,1.3168]
[1723744739235,24.99,143.56,143.52,3.4831]
[1723744739434,0.05312965,143.57,143.49,24.99]
[1723744739735,0.05312965,143.57,143.49,28.41773646]
[1723744739934,0.05312965,143.57,143.56,3.4823]
[1723744740238,24.99,143.61,143.52,6.4]
[1723744740433,24.99,143.61,143.55,3.4825]
[1723744740740,0.04847376,143.54,143.52,6.4]
[1723744740926,0.04847376,143.54,143.47,1.3168]
[1723744741132,0.04847376,143.54,143.48,6.4]
[1723744741328,24.99,143.56,143.48,6.4]
[1723744741834,24.99,143.59,143.48,6.4]
[1723744742034,0.05355831,143.52,143.49,28.47913207]
[1723744742231,24.99,143.61,143.49,24.99]
[1723744742432,24.99,143.63,143.51,24.99]
[1723744742938,24.99,143.63,143.47,1.3168]
[1723744742939,24.99,143.61,143.49,24.99]
[1723744743241,24.99,143.63,143.55,3.4825]
[1723744743242,24.99,143.59,143.55,3.4825]
[1723744743434,24.99,143.59,143.5,6.4]
[1723744743739,24.99,143.59,143.54,0.05045225]
[1723744743740,0.04893627,143.56,143.54,0.05045225]
[1723744744036,70.41439519,143.64,143.54,0.05045225]
[1723744744037,6.9474,143.92,143.55,24.99]
[1723744744243,24.99,143.65,143.56,1.2728]
[1723744744832,24.99,143.72,143.54,0.05045225]
[1723744744833,24.99,143.63,143.54,0.05045225]
[1723744745239,24.99,143.63,143.5,1.3552]
[1723744745240,24.99,143.61,143.57,3.482]
[1723744745436,24.99,143.59,143.5,1.3552]
[1723744745637,24.99,143.56,143.5,1.3552]
[1723744746142,24.99,143.54,143.44,1.2361]
[1723744746332,24.99,143.57,143.37,24.99]
[1723744746333,24.99,143.49,143.37,24.99]
[1723744746538,24.99,143.49,143.39,1.3552]
[1723744746933,31.39,143.49,143.47,3.4845]
[1723744747137,1.2989,143.56,143.42,24.99]
[1723744747138,24.99,143.52,143.42,24.99]
[1723744747345,24.99,143.52,143.39,1.3552]
[1723744747346,24.99,143.54,143.51,3.4835]
[1723744747539,24.99,143.57,143.46,3.56613899]
[1723744747739,24.99,143.57,143.46,24.99]
[1723744747938,67.9199036,143.58,143.47,4.82464742]
[1723744748149,30.1,143.61,143.48,3.48746392]
[1723744748437,30.1,143.59,143.52,3.4831]
[1723744748641,30.1,143.59,143.49,6.72]
[1723744748940,0.04624103,143.53,143.49,6.72]
[1723744749448,0.04624103,143.53,143.52,3.4833]
[1723744750043,0.04624103,143.53,143.49,6.72]
[1723744750343,30.1,143.52,143.5,0.04814357]
[1723744751342,6.72,143.51,143.39,1.3393]
[1723744751538,30.1,143.4,143.35,3.4872]
[1723744751741,30.1,143.46,143.29,1.2728]
[1723744751742,30.1,143.37,143.29,1.2728]
[1723744752042,30.1,143.4,143.34,3.4876]
[1723744752341,30.1,143.35,143.25,2.619]
[1723744752543,30.1,143.39,143.21,3.40503513]
[1723744752544,30.1,143.32,143.21,3.40503513]
[1723744752739,30.1,143.32,143.18,1.3346]
[1723744752934,6.72,143.34,143.18,1.3346]
[1723744752935,30.1,143.29,143.18,1.3346]
[1723744753350,30.1,143.27,143.14,1.2728]
[1723744753550,30.1,143.29,143.15,30.1]
[1723744753747,30.1,143.29,143.22,3.4905]
[1723744754048,30.1,143.31,143.17,30.1]
[1723744754240,30.1,143.31,143.19,7.08]
[1723744754444,1.288,143.33,143.22,0.0517358]
[1723744754636,1.288,143.33,143.27,3.4893]
[1723744754837,30.1,143.31,143.22,0.0517358]
[1723744755150,30.1,143.26,143.22,3.5422358]
[1723744755350,30.14487115,143.26,143.22,0.0517358]
[1723744755542,30.14487115,143.26,143.13,10.50698961]
[1723744756242,30.14487115,143.26,143.23,0.04652329]
[1723744756545,30.1,143.26,143.23,0.04652329]
[1723744756937,30.14747765,143.26,143.15,30.1]
[1723744757148,0.04747765,143.26,143.17,30.1]
[1723744757647,30.1,143.32,143.23,0.05238105]
[1723744757847,30.1,143.24,143.23,0.05238105]
[1723744758044,30.1,143.26,143.23,0.05238105]
[1723744758242,0.0531017,143.23,143.11,1.2859]
[1723744758447,30.1,143.21,143.11,1.2859]
[1723744759043,30.1,143.26,143.14,30.1]
[1723744759243,30.1,143.26,143.21,3.4908]
[1723744759447,30.1,143.26,143.14,30.1]
[1723744759448,0.04833351,143.17,143.15,0.04430289]
[1723744759642,7.1,143.32,143.16,37.2]
[1723744759850,30.1,143.34,143.2,30.1]
[1723744760343,30.1,143.31,143.18,30.1]
[1723744760845,30.1,143.33,143.2,30.1]
[1723744761041,30.1,143.33,143.21,1.3485]
[1723744761243,0.04994771,143.26,143.23,0.04770886]
[1723744761442,30.1,143.36,143.23,30.14770886]
[1723744762045,30.1,143.36,143.25,30.1]
[1723744762252,30.1,143.4,143.27,30.1]
[1723744762439,30.1,143.38,143.26,7.1]
[1723744762649,30.1,143.36,143.26,7.1]
[1723744762845,30.1,143.36,143.32,3.4881]
[1723744763039,30.1,143.36,143.26,7.1]
[1723744763247,0.04606782,143.35,143.32,0.04834804]
[1723744763447,0.04606782,143.35,143.34,3.4876]
[1723744764044,30.1,143.38,143.26,7.1]
[1723744764249,30.1,143.35,143.26,7.1]
[1723744764846,30.1,143.35,143.33,0.05018653]
[1723744765053,30.1,143.35,143.24,7.1]
[1723744765054,30.1,143.32,143.24,7.1]
[1723744765256,30.1,143.3,143.24,7.1]
[1723744765451,30.1,143.3,143.22,1.272]
[1723744765751,30.1,143.3,143.26,3.4894]
[1723744765946,30.1,143.3,143.22,1.272]
[1723744766149,89.43042834,143.53,143.34,3.4874]
[1723744766344,30.1,143.39,143.3,7.42]
[1723744766552,30.1,143.42,143.3,7.42]
[1723744766758,30.1,143.42,143.31,1.28128869]
[1723744766953,30.1,143.42,143.29,30.1]
[1723744767157,30.1,143.42,143.3,1.28132212]
[1723744767348,30.1,143.39,143.3,1.28132212]
[1723744767556,30.1,143.34,143.29,7.42]
[1723744767752,30.1,143.34,143.31,3.4882]
[1723744767952,30.1,143.34,143.29,7.42]
[1723744768353,0.04813745,143.37,143.29,7.42]
[1723744768555,30.1,143.31,143.21,2.6554]
[1723744768758,30.1,143.31,143.23,1.2819329]
[1723744768962,30.1,143.28,143.23,8.7019329]
[1723744769157,30.1,143.28,143.23,7.42]
[1723744769351,30.1,143.26,143.21,1.3485]
[1723744769653,30.1,143.26,143.18,7.42]
[1723744769856,30.1,143.21,143.11,1.3066]
[1723744770064,37.52,143.23,143.18,3.4915]
[1723744770254,37.52,143.23,143.11,1.3066]
[1723744770459,30.1,143.2,143.13,3.4926]
[1723744770660,30.1,143.18,143.14,1.2826012]
[1723744770863,30.1,143.18,143.15,0.0520239]
[1723744771054,30.1,143.2,143.15,0.0520239]
[1723744771263,7.46836471,143.22,143.15,0.0520239]
[1723744771457,30.1,143.2,143.15,0.0520239]
[1723744771774,30.1,143.2,143.15,3.4921]
[1723744772061,30.15241614,143.2,143.08,30.1]
[1723744772265,30.15241614,143.2,143.17,0.04517134]
[1723744772669,30.1,143.2,143.1,1.28272767]
[1723744772860,30.1,143.23,143.1,1.28272767]
[1723744773064,0.05338911,143.2,143.17,0.05184339]
[1723744773565,0.05338911,143.2,143.19,3.4913]
[1723744773755,30.1,143.28,143.17,0.05184339]
[1723744773961,30.1,143.31,143.24,3.49]
[1723744774470,33.5884,143.31,143.24,3.49]
[1723744774767,30.1,143.31,143.23,7.42]
[1723744775068,30.1,143.33,143.3,3.4884]
[1723744775267,30.1,143.33,143.23,37.52]
[1723744775565,30.1,143.33,143.32,3.4881]
[1723744775760,30.1,143.33,143.26,0.04935765]
[1723744776062,30.1,143.33,143.29,3.4888]
[1723744776461,0.04439866,143.29,143.26,0.04935765]
[1723744776761,0.04439866,143.29,143.2,7.42]
[1723744777161,30.1,143.34,143.21,30.1]
[1723744777362,1.3446,143.38,143.26,0.0489093]
[1723744777665,30.1,143.37,143.27,7.42]
[1723744777862,30.1,143.35,143.27,7.42]
[1723744778170,7.42,143.43,143.27,7.42]
[1723744778171,3.4868,143.38,143.27,7.42]
[1723744778463,30.1,143.35,143.27,7.42]
[1723744778669,30.1,143.35,143.32,3.4879]
[1723744778872,0.04491209,143.32,143.27,7.42]
[1723744779069,0.04491209,143.32,143.3,0.04603271]
[1723744779274,0.04491209,143.32,143.31,3.4884]
[1723744779768,30.1,143.38,143.3,0.04603271]
[1723744780361,0.04682489,143.33,143.3,0.04603271]
[1723744780970,3.68262765,143.45,143.3,0.04603271]
[1723744780971,30.1,143.42,143.31,7.42]
[1723744781473,30.1,143.42,143.38,3.4865]
[1723744781767,30.1,143.4,143.27,30.1]
[1723744782073,30.1,143.4,143.28,8.70106369]
[1723744782272,30.1,143.4,143.28,7.42]
[1723744782664,0.04496067,143.35,143.32,0.04934473]
[1723744783069,0.04496067,143.35,143.34,3.4876]
[1723744783266,0.04496067,143.35,143.34,10.9076]
[1723744785571,0.04496067,143.35,143.34,3.4876]
[1723744785772,0.04496067,143.35,143.34,10.9076]
[1723744785976,30.1,143.46,143.41,3.4858]
[1723744786175,30.1,143.46,143.34,7.42]
[1723744786366,30.1,143.4,143.34,7.42]
[1723744786567,30.1,143.4,143.37,3.4868]
[1723744786780,30.1,143.4,143.35,7.42]
[1723744787176,30.1,143.4,143.33,7.42]
[1723744787371,30.1,143.38,143.36,0.04600433]
[1723744787874,30.1,143.41,143.33,7.42]
[1723744788276,0.05104461,143.38,143.36,0.04606222]
[1723744788674,0.05104461,143.38,143.37,3.4869]
[1723744788871,30.1,143.43,143.33,10.82749016]
[1723744789372,0.04676921,143.39,143.37,3.4869]
[1723744789576,0.04676921,143.39,143.36,0.0456957]
[1723744790079,30.1,143.38,143.36,0.0456957]
[1723744790472,30.1,143.38,143.2,30.1]
[1723744790673,30.1,143.33,143.26,1.2814805]
[1723744790873,30.1,143.33,143.27,1.28151586]
[1723744791075,30.1,143.33,143.28,1.28152868]
[1723744791271,30.1,143.33,143.22,35.32]
[1723744791475,30.1,143.33,143.23,1.28154559]
[1723744791876,30.1,143.35,143.23,1.28154559]
[1723744792074,30.1,143.35,143.24,30.1]
[1723744792271,0.04855296,143.29,143.26,0.05353953]
[1723744792875,0.04855296,143.29,143.26,1.33508512]
[1723744793175,30.1,143.3,143.24,3.49]
[1723744793568,0.04933107,143.29,143.26,0.04892468]
[1723744794779,30.1,143.27,143.2,7.42]
[1723744794972,30.1,143.27,143.21,1.282287]
[1723744795172,33.5895,143.27,143.2,3.491]
[1723744795373,30.1,143.27,143.15,7.42]
[1723744795677,30.1,143.27,143.16,1.28238047]
[1723744796276,0.045223,143.23,143.2,0.04821001]
[1723744797181,30.1,143.22,143.2,0.04821001]
[1723744798179,30.1,143.22,143.11,2.6233]
[1723744798477,30.1,143.2,143.15,3.4922]